bitfinex/quotes_SOLUSD_20251117
["timestamp","ask_amount","ask_price","bid_price","bid_amount"]
[1763387763878,8.94,138.1,138.08,5.62069223]
[1763387764073,8.94,138.1,138.06,0.67]
[1763387764074,8.94,138.1,138.09,0.67]
[1763387764281,0.2,138.11,138.09,10.45882769]
[1763387764502,0.7,138.21,138.11,9.78882769]
[1763387764675,8.94,138.18,138.16,5.62069223]
[1763387765308,5.62069223,138.22,138.12,0.67]
[1763387765309,8.94,138.2,138.17,6.29069223]
[1763387765513,0.2,138.23,138.19,5.62069223]
[1763387765815,0.2,138.22,138.18,0.67]
[1763387765986,5.8,138.21,138.18,0.67]
[1763387766376,5.8,138.21,138.19,9.78882769]
[1763387766573,8.94,138.21,138.19,9.78882769]
[1763387766808,8.94,138.21,138.2,0.71]
[1763387767124,0.2,138.22,138.2,0.71]
[1763387767402,0.2,138.22,138.21,8.82048728]
[1763387767789,0.86,138.22,138.14,9.78882769]
[1763387768001,0.86,138.22,138.01,0.72458517]
[1763387768172,18.78096,138.21,138.01,5.96]
[1763387768373,18.78096,138.21,137.99,34.28461933]
[1763387768374,8.82048728,138.14,137.99,33.55992914]
[1763387768610,8.94,138.13,137.95,9.66490032]
[1763387768784,18.12096,138.18,138.05,8.82048728]
[1763387768785,8.94,138.12,138.05,8.82048728]
[1763387768985,8.94,138.11,138.03,18.12096]
[1763387769199,8.94,138.1,138.07,8.82048728]
[1763387769394,8.94,138.1,138.03,18.12096]
[1763387769605,9.6,138.1,138.05,8.82048728]
[1763387769786,0.66,138.09,138.06,8.82048728]
[1763387769990,0.66,138.09,138.04,9.78882769]
[1763387770188,0.66,138.09,138.06,8.82048728]
[1763387770396,0.66,138.09,138.03,9.78882769]
[1763387770686,0.66,138.09,137.95,8.94]
[1763387770882,0.66,138.09,138.06,8.82048728]
[1763387771088,8.94,138.08,138.04,9.78882769]
[1763387771298,0.66,138.12,138.07,8.82048728]
[1763387771506,8.94,138.11,138.07,8.82048728]
[1763387771693,8.94,138.1,138.07,8.82048728]
[1763387771897,0.66,138.12,138.07,8.82048728]
[1763387772106,8.94,138.11,138.07,8.82048728]
[1763387772310,9.6,138.12,138.09,8.82048728]
[1763387772604,9.6,138.12,138.08,8.82048728]
[1763387772827,0.66,138.15,138.1,8.82048728]
[1763387773119,0.2,138.22,138.14,8.82048728]
[1763387773120,0.66,138.21,138.14,8.82048728]
[1763387773419,17.76048728,138.2,138.14,8.82048728]
[1763387773705,8.82048728,138.17,138.11,8.82048728]
[1763387774102,0.66,138.16,138.12,8.82048728]
[1763387774402,0.66,138.16,138.13,8.82048728]
[1763387774600,8.94,138.15,138.08,9.78882769]
[1763387774806,8.94,138.15,138.12,8.82048728]
[1763387775099,0.66,138.14,138.1,8.82048728]
[1763387775303,8.94,138.15,138.13,8.82048728]
[1763387775605,9.6,138.15,138.13,8.82048728]
[1763387775799,0.66,138.14,138.01,9.78882769]
[1763387775999,0.2,138.22,138.12,8.82048728]
[1763387776000,18.32096,138.22,138.12,8.82048728]
[1763387776196,18.32096,138.22,138.08,9.78882769]
[1763387776197,0.66,138.17,138.13,8.82048728]
[1763387776383,8.94,138.16,138.08,9.78882769]
[1763387776587,8.94,138.16,138.06,18.12096]
[1763387776588,8.94,138.16,138.07,9.78882769]
[1763387776799,8.94,138.15,138.13,8.82048728]
[1763387776990,8.94,138.15,138.1,9.78882769]
[1763387776991,0.66,138.21,138.14,18.60931497]
[1763387777188,0.66,138.21,138.14,9.78882769]
[1763387777390,9.6,138.21,138.13,18.12096]
[1763387777691,9.6,138.21,138.15,8.82048728]
[1763387777894,0.7,138.2,138.16,8.82048728]
[1763387778084,0.7,138.2,138.14,9.78882769]
[1763387778289,0.7,138.2,138.11,18.12096]
[1763387778487,0.7,138.2,138.19,8.82048728]
[1763387778488,7.44,138.2,138.19,8.82048728]
[1763387778687,7.44,138.2,138.17,8.82048728]
[1763387779186,9.02048728,138.22,138.12,9.78882769]
[1763387779187,0.7,138.19,138.16,8.82048728]
[1763387779402,18.46048728,138.19,138.14,8.82048728]
[1763387779582,9.64,138.19,138.14,8.82048728]
[1763387779793,8.82048728,138.16,138.01,33.55992914]
[1763387780006,8.82048728,138.16,138.1,8.82048728]
[1763387780211,9.64,138.15,138.11,8.82048728]
[1763387780608,0.2,138.22,138.11,8.82048728]
[1763387780609,9.64,138.14,138.11,8.82048728]
[1763387781415,8.94,138.14,138.12,8.82048728]
[1763387781602,0.7,138.14,138.12,8.82048728]
[1763387781919,0.7,138.16,138.13,8.82048728]
[1763387782103,9.64,138.16,138.13,8.82048728]
[1763387782306,9.64,138.16,138.1,9.78882769]
[1763387782615,0.7,138.15,138.12,8.82048728]
[1763387782921,8.94,138.14,138.12,8.82048728]
[1763387783122,8.94,138.14,138.09,8.82048728]
[1763387783290,9.52048728,138.13,138.05,9.78882769]
[1763387783490,9.52048728,138.13,138.01,42.49992914]
[1763387783491,8.82048728,138.12,138.07,8.82048728]
[1763387783742,0.7,138.12,138.08,8.82048728]
[1763387784021,9.52048728,138.11,138.05,8.82048728]
[1763387784229,8.82048728,138.08,138.03,8.82048728]
[1763387784395,5.71112335,138.19,138.07,8.82048728]
[1763387784601,0.7,138.12,138.08,8.82048728]
[1763387784794,8.82048728,138.09,137.93,8.94]
[1763387785011,8.94,138.11,137.93,8.94]
[1763387785012,8.82048728,138.05,137.93,8.94]
[1763387785297,27.06096,138.11,137.94,9.78882769]
[1763387785298,8.94,138.04,137.94,9.78882769]
[1763387785513,8.94,138.03,138.02,8.82048728]
[1763387785724,8.94,138.03,137.96,18.12096]
[1763387785920,0.7,138.05,138.01,8.82048728]
[1763387786223,8.94,138.03,138.01,8.82048728]
[1763387786430,0.7,138.05,138.01,8.82048728]
[1763387786617,8.94,138.04,137.97,9.78882769]
[1763387786831,8.94,138.04,138.0,8.82048728]
[1763387787018,0.7,138.03,137.99,8.82048728]
[1763387787399,0.7,138.03,137.89,0.72521575]
[1763387787400,0.7,138.03,137.83,0.66]
[1763387787603,0.7,138.03,137.8,0.1]
[1763387787604,8.82048728,137.95,137.89,8.82048728]
[1763387787829,8.82048728,137.93,137.88,8.92048728]
[1763387788028,9.68,137.92,137.88,0.1]
[1763387788246,8.82048728,137.9,137.88,0.1]
[1763387788404,9.68,137.91,137.88,0.1]
[1763387788405,17.80048728,137.89,137.88,0.1]
[1763387788932,15.31175241,137.89,137.88,0.1]
[1763387790341,15.29175241,137.89,137.88,0.1]
[1763387790640,15.29175241,137.89,137.8,0.1]
[1763387790808,9.41992754,137.83,137.8,0.1]
[1763387791012,8.96,137.82,137.8,0.1]
[1763387791257,19.07992754,137.82,137.8,0.1]
[1763387791445,0.7,137.81,137.8,0.1]
[1763387791610,8.96,137.81,137.8,0.1]
[1763387791810,9.66,137.81,137.8,0.1]
[1763387792406,19.07992754,137.81,137.78,967.17]
[1763387792636,10.11992754,137.8,137.78,967.17]
[1763387793009,0.7,137.79,137.78,967.17]
[1763387794430,8.96,137.79,137.78,967.17]
[1763387794638,10.11992754,137.85,137.79,9.78882769]
[1763387794821,55.71112335,137.96,137.78,976.58992754]
[1763387794822,0.7,137.91,137.78,967.83]
[1763387795043,9.41992754,137.87,137.82,9.41992754]
[1763387795340,17.44,137.94,137.8,9.41992754]
[1763387795341,9.41992754,137.85,137.8,9.41992754]
[1763387795541,9.66,137.86,137.79,9.41992754]
[1763387795542,18.37992754,137.84,137.79,9.41992754]
[1763387795733,9.41992754,137.82,137.78,967.17]
[1763387795948,9.41992754,137.82,137.78,976.58992754]
[1763387796134,8.98,137.81,137.78,976.58992754]
[1763387796447,9.41992754,137.85,137.8,9.41992754]
[1763387796641,8.98,137.84,137.8,9.41992754]
[1763387796843,9.66,137.84,137.8,9.41992754]
[1763387797150,9.66,137.84,137.78,967.89]
[1763387797326,9.41992754,137.8,137.78,967.17]
[1763387797518,18.39992754,137.79,137.78,967.17]
[1763387797820,19.07992754,137.79,137.78,965.68]
[1763387798230,37.20088754,137.79,137.78,903.59954152]
[1763387798838,28.22088754,137.79,137.78,903.59954152]
[1763387799053,37.20088754,137.79,137.78,903.59954152]
[1763387800440,28.49985508,137.79,137.78,838.0593273]
[1763387800643,38.28868277,137.79,137.78,838.0593273]
[1763387800851,40.28868277,137.79,137.78,828.73792576]
[1763387801351,10.09992754,137.79,137.78,775.97886882]
[1763387801526,37.20088754,137.79,137.78,775.97886882]
[1763387802240,37.20088754,137.79,137.78,713.89841034]
[1763387802442,28.22088754,137.79,137.78,713.89841034]
[1763387802644,0.59,137.81,137.78,713.89841034]
[1763387802831,9.41992754,137.79,137.78,713.89841034]
[1763387803858,10.00992754,137.79,137.78,713.89841034]
[1763387804532,18.12096,137.84,137.78,713.89841034]
[1763387804735,9.41992754,137.79,137.78,713.89841034]
[1763387805944,0.59,137.84,137.78,713.89841034]
[1763387806144,9.41992754,137.8,137.78,713.89841034]
[1763387806339,9.41992754,137.81,137.78,713.89841034]
[1763387806535,9.41992754,137.83,137.79,0.72]
[1763387806844,9.41992754,137.84,137.79,10.13992754]
[1763387807243,9.41992754,137.82,137.78,713.89841034]
[1763387807655,9.41992754,137.82,137.78,714.61841034]
[1763387808045,9.41992754,137.79,137.78,713.89841034]
[1763387808444,9.41992754,137.8,137.78,713.89841034]
[1763387808746,9.41992754,137.79,137.78,713.89841034]
[1763387809058,9.41992754,137.88,137.78,713.89841034]
[1763387809258,9.41992754,137.82,137.78,713.89841034]
[1763387809430,9.41992754,137.82,137.78,714.61841034]
[1763387809755,9.41992754,137.82,137.78,713.89841034]
[1763387809946,9.41992754,137.83,137.79,0.72]
[1763387810142,9.41992754,137.81,137.78,713.89841034]
[1763387810360,9.41992754,137.8,137.78,713.89841034]
[1763387811280,9.41992754,137.85,137.79,10.13992754]
[1763387811438,9.41992754,137.85,137.8,10.13992754]
[1763387811639,9.41992754,137.86,137.81,0.72]
[1763387811842,9.41992754,137.87,137.82,9.41992754]
[1763387812043,0.59,137.9,137.83,10.13992754]
[1763387812247,9.41992754,137.88,137.83,0.72]
[1763387812471,9.41992754,137.86,137.81,9.41992754]
[1763387812655,9.41992754,137.86,137.81,0.72]
[1763387812858,18.12096,137.92,137.78,713.89841034]
[1763387812859,9.41992754,137.83,137.78,713.89841034]
[1763387813168,9.41992754,137.81,137.78,713.89841034]
[1763387813572,9.41992754,137.79,137.78,713.89841034]
[1763387815165,9.41992754,137.81,137.78,714.61841034]
[1763387815356,9.41992754,137.81,137.78,713.89841034]
[1763387815559,18.71096,137.85,137.78,713.89841034]
[1763387815867,18.71096,137.85,137.78,714.61841034]
[1763387816165,50.0,137.92,137.78,714.61841034]
[1763387816166,0.59,137.9,137.8,9.41992754]
[1763387816343,9.41992754,137.86,137.8,9.41992754]
[1763387816544,9.41992754,137.86,137.81,0.72]
[1763387818264,9.41992754,137.84,137.81,0.72]
[1763387818468,0.59,137.88,137.81,0.72]
[1763387818665,9.41992754,137.84,137.81,0.72]
[1763387818877,9.41992754,137.85,137.8,9.41992754]
[1763387819065,18.71096,137.9,137.81,10.13992754]
[1763387819274,9.41992754,137.85,137.81,0.72]
[1763387819583,11.78882769,137.93,137.81,0.72]
[1763387819584,18.12096,137.9,137.82,0.72]
[1763387819757,9.41992754,137.91,137.86,9.41992754]
[1763387819957,0.59,137.94,137.86,10.13992754]
[1763387820178,0.59,137.94,137.87,9.41992754]
[1763387820357,9.41992754,137.93,137.88,10.13992754]
[1763387820556,9.41992754,137.9,137.85,9.41992754]
[1763387820785,18.12096,137.93,137.86,0.72]
[1763387820958,0.59,137.93,137.86,0.72]
[1763387821155,9.41992754,137.89,137.86,0.72]
[1763387821575,9.41992754,137.89,137.84,9.41992754]
[1763387821881,18.12096,137.94,137.8,10.13992754]
[1763387821882,9.41992754,137.86,137.8,10.13992754]
[1763387822195,0.59,137.93,137.84,9.41992754]
[1763387822354,9.41992754,137.9,137.85,9.41992754]
[1763387822861,9.41992754,137.9,137.86,0.72]
[1763387823064,0.59,137.93,137.86,10.12939193]
[1763387823367,9.40939193,137.93,137.86,0.72]
[1763387823584,9.40939193,137.93,137.88,9.40939193]
[1763387823975,9.40939193,137.93,137.89,0.72]
[1763387824176,0.59,137.97,137.89,0.72]
[1763387824177,9.40939193,137.94,137.9,9.40939193]
[1763387824411,9.40939193,137.97,137.92,9.40939193]
[1763387824578,0.59,138.0,137.92,9.40939193]
[1763387824765,18.12096,137.99,137.93,9.40939193]
[1763387824961,0.59,138.0,137.93,9.40939193]
[1763387825175,0.59,138.0,137.94,9.40939193]
[1763387825478,0.59,138.0,137.93,0.72]
[1763387825479,0.79,138.01,137.93,9.40939193]
[1763387825702,9.40939193,138.0,137.95,9.40939193]
[1763387825914,9.60939193,138.01,137.96,9.40939193]
[1763387826117,0.2,138.01,137.97,9.40939193]
[1763387826327,5.59084406,138.16,137.99,9.40939193]
[1763387826328,0.59,138.07,137.99,9.40939193]
[1763387826478,2.0,138.12,137.98,0.72]
[1763387826479,9.40939193,138.05,137.98,0.72]
[1763387826679,5.13273733,138.09,137.98,0.72]
[1763387826879,9.40939193,138.03,137.98,0.72]
[1763387827074,2.0,138.11,138.02,9.40939193]
[1763387827075,9.40939193,138.07,138.02,9.40939193]
[1763387827376,0.59,138.11,138.03,0.68]
[1763387827589,17.46,138.15,138.03,0.68]
[1763387827590,5.13232769,138.14,138.05,11.73087284]
[1763387827817,5.13232769,138.14,138.06,12.41087284]
[1763387827818,0.59,138.14,138.06,12.41087284]
[1763387828013,18.12096,138.12,138.06,12.41087284]
[1763387828215,18.12096,138.12,138.07,0.68]
[1763387828507,29.85183284,138.12,138.07,11.73087284]
[1763387828712,18.12096,138.12,138.04,11.73087284]
[1763387828892,18.12096,138.12,138.01,9.78882769]
[1763387828893,11.73087284,138.11,138.07,0.68]
[1763387829293,11.73087284,138.13,138.07,0.68]
[1763387829526,11.73087284,138.13,138.09,11.73087284]
[1763387829829,52.2,138.23,138.07,0.68]
[1763387829830,0.59,138.21,138.12,11.73087284]
[1763387830154,0.59,138.21,138.07,0.68]
[1763387830295,11.73087284,138.16,138.11,11.73087284]
[1763387830498,18.12096,138.2,138.12,11.73087284]
[1763387830825,0.59,138.21,138.09,9.78882769]
[1763387831008,11.73087284,138.13,138.08,0.68]
[1763387831181,18.12096,138.15,138.08,0.68]
[1763387831519,18.12096,138.15,138.01,9.78882769]
[1763387831691,18.12096,138.13,138.05,12.41087284]
[1763387832013,11.73087284,138.11,138.06,11.73087284]
[1763387832329,18.12096,138.17,138.09,11.73087284]
[1763387832486,11.73087284,138.15,138.1,12.41087284]
[1763387832693,18.12096,138.17,138.1,12.41087284]
[1763387832890,11.73087284,138.13,138.07,11.73087284]
[1763387833099,11.73087284,138.16,138.11,11.73087284]
[1763387833298,11.73087284,138.17,138.12,11.73087284]
[1763387833620,11.73087284,138.16,138.1,12.41087284]
[1763387833821,18.12096,138.17,138.1,0.68]
[1763387834124,18.12096,138.17,138.07,12.41087284]
[1763387834292,11.73087284,138.13,138.08,11.73087284]
[1763387834487,11.73087284,138.12,138.06,0.68]
[1763387834692,11.73087284,138.1,138.01,9.78882769]
[1763387834985,0.59,138.14,138.05,11.73087284]
[1763387835188,18.12096,138.15,138.09,11.73087284]
[1763387835407,29.85183284,138.15,138.03,0.68]
[1763387835603,11.73087284,138.14,138.08,11.73087284]
[1763387835886,18.71096,138.17,138.04,9.78882769]
[1763387835887,11.73087284,138.16,138.11,11.73087284]
[1763387836103,0.2,138.22,138.12,11.73087284]
[1763387836104,0.79,138.22,138.12,11.73087284]
[1763387836314,0.79,138.22,138.13,0.68]
[1763387836557,11.73087284,138.17,138.13,0.68]
[1763387837062,11.73087284,138.14,138.09,12.41087284]
[1763387837221,11.73087284,138.14,138.1,0.71]
[1763387837412,18.12096,138.15,138.07,12.44087284]
[1763387837646,18.12096,138.15,138.08,11.73087284]
[1763387837647,11.73087284,138.13,138.08,11.73087284]
[1763387837856,18.12096,138.15,138.11,11.73087284]
[1763387838316,11.73087284,138.19,138.14,11.73087284]
[1763387838515,11.73087284,138.19,138.12,0.71]
[1763387838516,11.73087284,138.2,138.15,11.73087284]
[1763387838726,0.2,138.22,138.15,11.73087284]
[1763387838727,11.73087284,138.21,138.15,11.73087284]
[1763387838939,18.32096,138.22,138.16,0.71]
[1763387839142,11.73087284,138.21,138.16,12.44087284]
[1763387839365,11.93087284,138.22,138.17,11.73087284]
[1763387839538,0.2,138.22,138.19,11.73087284]
[1763387839845,0.2,138.22,138.2,0.71]
[1763387840141,0.2,138.22,138.19,0.71]
[1763387840320,0.2,138.22,138.2,0.71]
[1763387840824,11.93087284,138.22,138.16,0.71]
[1763387841021,0.2,138.22,138.17,11.73087284]
[1763387841320,11.93087284,138.22,138.17,11.73087284]
[1763387841521,0.2,138.22,138.18,12.44087284]
[1763387841736,0.2,138.22,138.19,11.73087284]
[1763387841916,0.2,138.22,138.21,11.73087284]
[1763387842319,0.2,138.23,138.21,12.44087284]
[1763387842561,11.73087284,138.28,138.22,0.71]
[1763387842852,18.12096,138.29,138.23,11.73087284]
[1763387843022,11.73087284,138.28,138.22,0.71]
[1763387843225,11.73087284,138.29,138.22,0.71]
[1763387843423,11.73087284,138.29,138.24,11.73087284]
[1763387843633,11.73087284,138.29,138.25,11.73087284]
[1763387843842,0.67,138.32,138.25,11.73087284]
[1763387844050,0.87,138.35,138.26,12.44087284]
[1763387844263,11.73087284,138.32,138.27,11.73087284]
[1763387844426,11.73087284,138.32,138.27,0.71]
[1763387844628,18.12096,138.34,138.27,12.44087284]
[1763387844972,11.93087284,138.31,138.27,0.71]
[1763387845260,0.2,138.31,138.27,0.71]
[1763387845550,11.73087284,138.29,138.23,0.71]
[1763387845754,0.87,138.31,138.24,0.71]
[1763387846049,18.99096,138.31,138.24,12.44087284]
[1763387846225,0.87,138.31,138.24,12.44087284]
[1763387846421,11.73087284,138.29,138.24,12.44087284]
[1763387846944,11.73087284,138.28,138.24,0.71]
[1763387847521,11.73087284,138.27,138.22,11.73087284]
[1763387847833,11.73087284,138.26,138.19,0.71]
[1763387848027,18.79096,138.29,138.19,0.71]
[1763387848332,0.67,138.29,138.22,11.73087284]
[1763387848526,11.73087284,138.27,138.23,11.73087284]
[1763387848725,18.12096,138.29,138.23,11.73087284]
[1763387848954,11.73087284,138.29,138.24,12.44087284]
[1763387849158,0.2,138.31,138.25,0.71]
[1763387849358,0.2,138.31,138.27,11.73087284]
[1763387849564,0.2,138.31,138.26,11.73087284]
[1763387849744,0.2,138.35,138.26,11.73087284]
[1763387849745,0.2,138.35,138.26,10.51210267]
[1763387849930,0.2,138.35,138.32,11.73087284]
[1763387850260,0.2,138.35,138.28,9.78882769]
[1763387850448,0.2,138.35,138.31,9.78882769]
[1763387850654,0.67,138.48,138.35,9.78882769]
[1763387850861,232.8,138.55,138.39,11.73087284]
[1763387850862,12.40087284,138.45,138.39,11.73087284]
[1763387851148,11.73087284,138.43,138.36,0.71]
[1763387851350,11.73087284,138.43,138.37,11.73087284]
[1763387851560,12.40087284,138.45,138.39,11.73087284]
[1763387851864,11.73087284,138.46,138.4,11.73087284]
[1763387852066,11.73087284,138.46,138.38,0.71]
[1763387852067,18.12096,138.46,138.41,11.73087284]
[1763387852370,0.67,138.51,138.42,9.78882769]
[1763387852543,11.73087284,138.52,138.46,11.73087284]
[1763387852867,0.67,138.54,138.42,6.69933945]
[1763387852868,24.82029945,138.49,138.42,6.69933945]
[1763387853038,18.12096,138.46,138.32,18.12096]
[1763387853239,0.67,138.49,138.4,6.69933945]
[1763387853466,6.69933945,138.47,138.41,6.69933945]
[1763387853670,0.67,138.46,138.4,6.69933945]
[1763387853964,7.36933945,138.46,138.39,7.40933945]
[1763387854270,0.67,138.46,138.4,6.69933945]
[1763387855066,6.69933945,138.43,138.37,6.69933945]
[1763387855257,18.12096,138.44,138.36,0.71]
[1763387855458,6.69933945,138.48,138.36,6.69933945]
[1763387855459,6.69933945,138.42,138.36,6.69933945]
[1763387855656,6.69933945,138.42,138.32,16.48816714]
[1763387855657,6.69933945,138.42,138.34,0.71]
[1763387855856,7.36933945,138.42,138.35,6.69933945]
[1763387856057,6.69933945,138.41,138.35,6.69933945]
[1763387856259,0.67,138.42,138.35,6.69933945]
[1763387856466,6.69933945,138.4,138.34,0.71]
[1763387856664,7.36933945,138.41,138.35,6.69933945]
[1763387856878,7.36933945,138.41,138.34,0.71]
[1763387857050,6.69933945,138.39,138.33,6.69933945]
[1763387857246,6.69933945,138.38,138.32,6.69933945]
[1763387857460,24.82029945,138.4,138.31,0.69]
[1763387857659,6.69933945,138.39,138.33,6.69933945]
[1763387857949,6.69933945,138.38,138.31,7.38933945]
[1763387858257,25.49029945,138.39,138.32,6.69933945]
[1763387858451,7.36933945,138.39,138.33,6.69933945]
[1763387858647,0.67,138.42,138.37,6.69933945]
[1763387858848,165.4,138.49,138.4,6.69933945]
[1763387858849,0.67,138.45,138.4,6.69933945]
[1763387859079,6.69933945,138.46,138.33,10.47882769]
[1763387859387,7.36933945,138.48,138.42,6.69933945]
[1763387859684,326.3,138.55,138.44,6.69933945]
[1763387859685,0.67,138.51,138.44,6.69933945]
[1763387859849,17.4,138.55,138.41,9.78882769]
[1763387860048,6.69933945,138.49,138.4,0.69]
[1763387860287,6.69933945,138.47,138.38,0.69]
[1763387860447,18.79096,138.48,138.41,6.69933945]
[1763387860448,0.67,138.48,138.41,6.69933945]
[1763387860651,7.36933945,138.47,138.41,6.69933945]
[1763387860849,6.69933945,138.48,138.42,6.69933945]
[1763387861080,6.69933945,138.45,138.38,0.69]
[1763387861262,6.69933945,138.45,138.39,6.69933945]
[1763387861663,7.36933945,138.45,138.39,6.69933945]
[1763387861975,0.67,138.45,138.4,6.69933945]
[1763387862376,165.4,138.51,138.4,6.69933945]
[1763387862377,0.67,138.49,138.44,6.69933945]
[1763387862763,182.8,138.55,138.47,6.69933945]
[1763387862764,0.67,138.53,138.47,6.69933945]
[1763387862975,7.36933945,138.53,138.47,6.69933945]
[1763387863288,169.18247815,138.59,138.5,6.69933945]
[1763387863479,6.69933945,138.54,138.35,18.12096]
[1763387863660,3.78247815,138.59,138.46,9.78882769]
[1763387863661,7.36933945,138.56,138.46,9.78882769]
[1763387863861,7.36933945,138.56,138.5,6.69933945]
[1763387864061,0.67,138.56,138.5,6.69933945]
[1763387864267,0.67,138.56,138.51,6.69933945]
[1763387864467,0.67,138.56,138.5,6.69933945]
[1763387864666,0.67,138.56,138.48,6.69933945]
[1763387864667,18.12096,138.54,138.48,6.69933945]
[1763387864865,18.12096,138.54,138.46,0.69]
[1763387865078,0.67,138.53,138.46,0.69]
[1763387865265,0.67,138.53,138.48,6.69933945]
[1763387865587,50.2,138.61,138.52,6.69933945]
[1763387865588,0.2,138.61,138.52,6.69933945]
[1763387865792,0.2,138.61,138.58,6.69933945]
[1763387866077,8.94,138.6,138.58,6.69933945]
[1763387866290,0.2,138.61,138.59,6.69933945]
[1763387866464,8.94,138.6,138.56,0.69]
[1763387866660,0.2,138.61,138.59,6.69933945]
[1763387866874,8.94,138.6,138.57,0.69]
[1763387867289,0.2,138.61,138.59,6.69933945]
[1763387867477,9.14,138.61,138.57,0.69]
[1763387867683,9.14,138.61,138.58,0.69]
[1763387868071,9.81,138.61,138.54,0.69]
[1763387868415,0.67,138.6,138.55,6.69933945]
[1763387868692,0.67,138.6,138.46,0.69]
[1763387868693,24.82029945,138.56,138.46,0.69]
[1763387868860,8.94,138.55,138.5,6.69933945]
[1763387869262,8.94,138.54,138.51,6.69933945]
[1763387869767,8.94,138.54,138.49,9.78882769]
[1763387869965,8.94,138.54,138.5,6.69933945]
[1763387870197,0.67,138.55,138.5,6.69933945]
[1763387870375,18.12096,138.56,138.52,6.69933945]
[1763387870577,8.94,138.55,138.48,17.17816714]
[1763387870771,8.94,138.55,138.51,6.84356751]
[1763387870967,8.94,138.55,138.52,6.84356751]
[1763387871170,8.94,138.55,138.44,18.12096]
[1763387871171,0.87,138.61,138.53,0.69]
[1763387871379,0.87,138.61,138.54,9.78882769]
[1763387871574,16.45356751,138.6,138.54,6.84356751]
[1763387871770,0.67,138.6,138.5,0.69]
[1763387871971,18.32096,138.61,138.49,6.84356751]
[1763387871972,18.12096,138.55,138.49,6.84356751]
[1763387872170,18.12096,138.53,138.47,6.84356751]
[1763387872465,18.12096,138.53,138.42,0.69]
[1763387872466,18.12096,138.49,138.42,0.69]
[1763387872669,18.12096,138.49,138.28,17.38]
[1763387872670,18.12096,138.49,138.33,6.84356751]
[1763387872878,8.94,138.48,138.42,7.53356751]
[1763387873080,18.12096,138.51,138.47,6.84356751]
[1763387873273,18.12096,138.52,138.48,6.84356751]
[1763387873591,0.67,138.58,138.51,6.84356751]
[1763387874092,18.12096,138.55,138.51,6.84356751]
[1763387874383,7.51356751,138.58,138.51,6.84356751]
[1763387874584,0.67,138.58,138.52,6.84356751]
[1763387874789,0.67,138.57,138.51,6.84356751]
[1763387874977,18.12096,138.53,138.46,0.69]
[1763387875172,18.12096,138.53,138.44,6.84356751]
[1763387875376,6.84356751,138.51,138.44,6.84356751]
[1763387875776,0.67,138.5,138.45,6.84356751]
[1763387875986,0.67,138.5,138.46,6.84356751]
[1763387876189,18.12096,138.51,138.47,6.84356751]
[1763387876372,18.12096,138.51,138.44,10.47882769]
[1763387876695,18.12096,138.51,138.47,6.84356751]
[1763387876903,2.0,138.59,138.45,6.84356751]
[1763387876904,18.79096,138.5,138.45,6.84356751]
[1763387877079,18.12096,138.49,138.42,10.47882769]
[1763387877271,0.67,138.49,138.41,0.69]
[1763387877467,7.51356751,138.48,138.34,33.55992914]
[1763387877779,7.51356751,138.48,138.41,6.84356751]
[1763387877984,18.12096,138.46,138.4,9.78882769]
[1763387878309,18.12096,138.46,138.43,6.84356751]
[1763387878465,0.67,138.48,138.43,6.84356751]
[1763387878664,18.12096,138.47,138.44,6.84356751]
[1763387878869,0.67,138.48,138.44,6.84356751]
[1763387879094,18.12096,138.47,138.44,6.84356751]
[1763387879496,165.4,138.54,138.42,9.78882769]
[1763387879706,18.12096,138.49,138.42,9.78882769]
[1763387879877,18.12096,138.49,138.43,6.84356751]
[1763387880075,7.51356751,138.48,138.38,0.69]
[1763387880381,6.84356751,138.46,138.4,6.84356751]
[1763387880584,18.12096,138.45,138.39,6.84356751]
[1763387880766,0.67,138.5,138.41,6.84356751]